[Event "Superbet Blitz Poland 2022"]
[Site "Warsaw"]
[Date "2022.05.22"]
[Round "5.3"]
[White "Caruana, Fabiano"]
[Black "Gavrilescu, David"]
[Result "1-0"]
[ECO "D38"]
[WhiteElo "2786"]
[BlackElo "2518"]
[Annotator "TA"]
[PlyCount "103"]
[EventDate "2022.05.22"]
[EventType "tourn"]
[EventCountry "POL"]
[SourceTitle "playchess.com"]
[Source "ChessBase"]
[SourceQuality "1"]
[TimeControl "300+2"]

{[%evp 21,103,0,20,0,0,-29,-19,-29,-18,-31,-8,-7,40,42,45,59,62,45,43,50,58,38,50,49,39,12,35,35,34,34,43,40,41,39,40,38,46,42,45,44,71,72,90,100,127,86,271,283,430,426,523,174,377,282,281,277,275,244,324,323,307,320,658,647,674,673,640,391,380,380,427,422,402,414,399,399,560,479,539,526,515,520,575,545]} 1. c4 {[%emt 0:00:01]} e6 {[%emt 0:00:01]} 2. Nc3 {[%emt 0:00:02]} d5 {[%emt 0:00:02]} 3. d4 {[%emt 0:00:01]} Nf6 {[%emt 0:00:02]} 4. cxd5 {[%emt 0:00:01]} exd5 {[%emt 0:00:01]} 5. Bg5 {[%emt 0:00:01]} Bb4 {[%emt 0:00:02]} 6. e3 {[%emt 0:00:04]} h6 {[%emt 0:00:01]} 7. Bxf6 {[%emt 0:00:02]} Qxf6 {[%emt 0:00:02]} 8. Qb3 {[%emt 0:00:09]} Qd6 {[%emt 0:00:02]} 9. Nf3 {[%emt 0:00:13]} O-O {[%emt 0:00:53]} 10. Bd3 {[%emt 0:00:02]} c6 {[%emt 0:00:34]} 11. O-O {[%emt 0:00:02]} Nd7 {[%emt 0:00:04]} 12. Rad1 {[%emt 0:00:07] [#] D38: Queen's Gambit Declined: Ragozin Defence (4 Nf3 Bb4).} Re8 $146 {[%emt 0:00:07]} ({Predecessor:} 12... Ba5 13. h3 Re8 14. Qa4 Bc7 15. Rfe1 Nf6 16. Ne5 Qe7 17. f4 Nd7 18. Qc2 Nxe5 19. fxe5 Be6 {1-0 (36) Finegold,B (2481)-Krush,I (2444) Saint Louis 2017}) 13. Ne2 {[%emt 0:00:34][%cal Bc3e2,Be2g3,Bg3f5][%mdl 32]} Nf6 {[%emt 0:00:59]} 14. Ng3 {[%emt 0:00:04] The position is equal.} (14. Ne5 {is interesting.} Ng4 15. Nf3 Ba5 16. h3) 14... Qe7 {[%emt 0:00:02]} 15. Bf5 {[%emt 0:01:10]} Bd6 {[%emt 0:00:40]} 16. Bxc8 {[%emt 0:00:02] [#] aiming for Nf5.} Rexc8 {[%emt 0:00:06]} (16... Bxg3 $11 17. hxg3 (17. Bxb7 Bxf2+ 18. Rxf2 Rab8 $11) 17... Raxc8) 17. Nf5 $14 {[%emt 0:00:13]} Qd7 {[%emt 0:00:02]} 18. Nxd6 {[%emt 0:00:02]} Qxd6 {[%emt 0:00:01]} 19. Qxb7 {[%emt 0:00:09]} Rcb8 {[%emt 0:00:45]} 20. Qa6 {[%emt 0:00:01]} Rxb2 {[%emt 0:00:04]} 21. Rc1 {[%emt 0:00:01]} Rb6 {[%emt 0:00:04]} 22. Qa4 {[%emt 0:00:27]} Nd7 {[%emt 0:00:24] Inhibits Ne5.} 23. Rc2 {[%emt 0:00:16]} c5 {[%emt 0:00:02]} 24. dxc5 {[%emt 0:00:01]} Nxc5 {[%emt 0:00:01]} 25. Qa5 {[%emt 0:00:03]} Ne6 {[%emt 0:00:08]} 26. Rd1 {[%emt 0:00:18]} Rd8 {[%emt 0:00:02]} 27. h3 {[%emt 0:00:23]} Ra6 {[%emt 0:00:06]} 28. Qc3 {[%emt 0:00:11]} Ra4 {[%emt 0:00:13]} 29. Rcd2 {[%emt 0:00:09]} Qa6 {[%emt 0:00:04]} 30. Qb2 {[%emt 0:00:11]} Qa5 {[%emt 0:00:09]} 31. Ne5 {[%emt 0:00:04] [#] And now Nc6 would win.} Qb6 {[%emt 0:00:10] Prevents Nc6.} 32. Qc2 {[%emt 0:00:10]} Qa6 {[%emt 0:00:01]} 33. Qf5 {[%emt 0:00:09]} Qb7 {[%emt 0:00:03] Black cannot hold the game after this.} (33... f6 $16) 34. Rb1 $18 {[%emt 0:00:16]} Qc7 {[%emt 0:00:02]} (34... Rb4 {is a better defense.} 35. Rxb4 Qxb4 36. Qxf7+ Kh8) 35. Rc2 {[%emt 0:00:02][%cal Bd2c2,Bc2c7,Bc7d7][%mdl 32]} g6 {[%emt 0:00:07]} 36. Nxg6 $40 {[%emt 0:00:15][%mdl 128] White is out for blood.} (36. Qxe6 Rc4 37. Rxc4 dxc4 38. Qf6) 36... Ng7 $2 {[%emt 0:00:01]} (36... Rc4) 37. Rxc7 {[%emt 0:00:07]} Nxf5 {[%emt 0:00:01]} 38. Ne5 {[%emt 0:00:02]} Nd6 {[%emt 0:00:03]} 39. Nc6 {[%emt 0:00:04]} Re8 {[%emt 0:00:03]} 40. Rd7 {[%emt 0:00:03]} Ne4 {[%emt 0:00:03]} 41. Rbb7 {[%emt 0:00:05]} ({But not} 41. Rxa7 $6 Rxa7 42. Nxa7 Ra8 $18) ({Less strong is} 41. Rxd5 Rxa2 42. Rf5 a5 $16) 41... Rxa2 $2 {[%emt 0:00:02]} (41... Rf8 42. Rxa7 Rxa7 43. Rxa7 Kg7) 42. Rxf7 {[%emt 0:00:02]} Nd6 {[%emt 0:00:02]} 43. Rg7+ {[%emt 0:00:01]} Kf8 {[%emt 0:00:01]} 44. Rxa7 {[%emt 0:00:03]} Rxa7 {[%emt 0:00:02]} 45. Rxa7 {[%emt 0:00:01][%mdl 4096] Endgame KRN-KRN} Rc8 {[%emt 0:00:02]} 46. Nd4 {[%emt 0:00:03]} Ne4 {[%emt 0:00:01]} 47. f3 {[%emt 0:00:02]} Rc1+ {[%emt 0:00:02]} 48. Kh2 {[%emt 0:00:01]} Nf6 {[%emt 0:00:01]} (48... Nc5 $142 49. Nf5 Rc3) 49. Ne6+ {[%emt 0:00:03] White is clearly winning.} Ke8 {[%emt 0:00:02]} 50. Ng7+ {[%emt 0:00:01]} Kf8 {[%emt 0:00:01]} 51. Nf5 {[%emt 0:00:01]} Rc2 {[%emt 0:00:02]} 52. Nxh6 {[%emt 0:00:03] Weighted Error Value: White=0.30/Black=0.47} 1-0

[Event "Superbet Blitz Poland 2022"]
[Site "Warsaw"]
[Date "2022.05.22"]
[Round "5.4"]
[White "Rapport, Richard"]
[Black "Korobov, Anton"]
[Result "1-0"]
[ECO "B23"]
[WhiteElo "2776"]
[BlackElo "2671"]
[Annotator "TA"]
[PlyCount "77"]
[EventDate "2022.05.22"]
[EventType "tourn"]
[EventCountry "POL"]
[SourceTitle "playchess.com"]
[Source "ChessBase"]
[SourceQuality "1"]
[TimeControl "300+2"]

{[%evp 9,77,12,41,43,52,52,38,39,46,8,31,0,0,0,0,0,0,0,0,0,0,0,0,0,0,0,77,77,62,66,85,83,81,76,132,124,122,116,177,161,201,202,257,256,279,291,287,291,294,283,342,339,335,346,468,466,492,476,471,481,462,448,495,447,430,436,426,422,398,343]} 1. e4 {[%emt 0:00:02]} c5 {[%emt 0:00:01]} 2. Nc3 {[%emt 0:00:02]} Nc6 {[%emt 0:00:02]} 3. Bb5 {[%emt 0:00:01]} e6 {[%emt 0:00:10]} 4. Bxc6 {[%emt 0:00:02]} bxc6 {[%emt 0:00:01]} 5. d3 {[%emt 0:00:02]} Ne7 {[%emt 0:00:10]} 6. f4 {[%emt 0:00:02] B23: Closed Sicilian: Lines without g3.} d5 {[%emt 0:00:02]} 7. Nf3 {[%emt 0:00:01]} Ng6 {[%emt 0:00:02]} 8. O-O {[%emt 0:00:07] White is slightly better.} Be7 {[%emt 0:00:05] [#]} 9. Na4 $146 {[%emt 0:00:18]} ({Predecessor:} 9. b3 Qc7 10. e5 O-O 11. Qe1 f6 12. Bd2 c4 13. bxc4 dxc4 14. d4 Rd8 15. Ne4 {½-½ (50) Gazik,V (2539)-Korobov,A (2688) Chess.com INT 2020}) 9... c4 {[%emt 0:00:13]} 10. b3 {[%emt 0:00:15]} cxd3 {[%emt 0:00:28]} 11. cxd3 dxe4 {[%emt 0:00:48]} 12. dxe4 {[%emt 0:00:03]} Ba6 {[%emt 0:00:01]} 13. Re1 {[%emt 0:00:02]} Qxd1 {[%emt 0:00:18]} 14. Rxd1 {[%emt 0:00:01]} Be2 {[%emt 0:00:02] This bishop pair is nice.} 15. Re1 {[%emt 0:00:17]} Bxf3 {[%emt 0:00:05]} 16. gxf3 {[%emt 0:00:01]} O-O-O {[%emt 0:00:22]} 17. Be3 {[%emt 0:00:18]} Rd3 {[%emt 0:00:02]} (17... Bd6 $11) 18. Rac1 $16 {[%emt 0:00:04][%cal Ba1c1,Bc1c5,Bc5h5][%mdl 32]} Kb7 {[%emt 0:00:03]} 19. Kf2 {[%emt 0:00:26]} Rhd8 {[%emt 0:00:31] White now steadily converts the win.} 20. Nc5+ {[%emt 0:00:04]} Bxc5 {[%emt 0:00:02]} 21. Rxc5 {[%emt 0:00:01]} Ne7 {[%emt 0:00:13]} (21... Rd1 $142) 22. Ke2 {[%emt 0:00:12]} R3d7 {[%emt 0:00:06]} 23. Rh5 {[%emt 0:00:06]} h6 {[%emt 0:00:29]} (23... Rh8 $16 {is a better defense.} 24. Rg5 Rg8) 24. Rg1 $18 {[%emt 0:00:01]} g6 {[%emt 0:00:11]} 25. Rxh6 {[%emt 0:00:05]} c5 {[%emt 0:00:01]} 26. Rc1 {[%emt 0:00:07]} ({Worse is} 26. Bxc5 Rd2+ 27. Ke1 Rxa2 $17) 26... Nc6 {[%emt 0:00:03]} 27. Rxc5 {[%emt 0:00:06]} Nd4+ {[%emt 0:00:05]} 28. Kf2 {[%emt 0:00:06]} a6 {[%emt 0:00:04]} 29. Rh7 {[%emt 0:00:06] [#] And now Bxd4 would win.} Nb5 {[%emt 0:00:03]} 30. f5 {[%emt 0:00:14]} exf5 {[%emt 0:00:24]} 31. exf5 {[%emt 0:00:01]} gxf5 {[%emt 0:00:09]} 32. Rxf5 {[%emt 0:00:04]} Nd6 {[%emt 0:00:09]} 33. Rd5 {[%emt 0:00:03]} Kc6 {[%emt 0:00:07]} 34. Rc5+ {[%emt 0:00:07]} Kb7 {[%emt 0:00:01]} 35. Bf4 {[%emt 0:00:05]} Ne8 {[%emt 0:00:12]} 36. Rf5 {[%emt 0:00:07] Inhibits Nf6.} f6 {[%emt 0:00:01]} 37. Rxd7+ {[%emt 0:00:03]} Rxd7 {[%emt 0:00:01]} 38. Rc5 {[%emt 0:00:06]} Ng7 {[%emt 0:00:02]} 39. Be3 {[%emt 0:00:07] Weighted Error Value: White=0.06 (flawless) /Black=0.23 (precise)} 1-0

[Event "Superbet Blitz Poland 2022"]
[Site "Warsaw"]
[Date "2022.05.22"]
[Round "5.5"]
[White "Wojtaszek, Radoslaw"]
[Black "Duda, Jan-Krzysztof"]
[Result "0-1"]
[ECO "A38"]
[WhiteElo "2696"]
[BlackElo "2750"]
[Annotator "TA"]
[PlyCount "90"]
[EventDate "2022.05.22"]
[EventType "tourn"]
[EventCountry "POL"]
[SourceTitle "playchess.com"]
[Source "ChessBase"]
[SourceQuality "1"]
[TimeControl "300+2"]

{[%evp 15,90,18,39,18,26,7,14,22,23,36,55,26,24,20,24,4,16,0,18,12,13,15,12,12,14,0,0,0,11,0,0,-109,-102,-97,-100,-128,-120,-139,-97,-122,-126,-206,-195,-189,-204,-198,-187,-185,-183,-327,-302,-302,-293,-535,-366,-735,0,-483,0,-502,-402,-432,-396,-336,0,-407,-179,-680,-675,-625,-430,-1368,-432,-368,0,-952,-849]} 1. d4 {[%emt 0:00:01]} Nf6 {[%emt 0:00:01]} 2. c4 {[%emt 0:00:01]} g6 {[%emt 0:00:01]} 3. Nf3 {[%emt 0:00:02][%cal Bg1f3,Bf3d4,Bd4c2,Bc2e3][%mdl 32]} Bg7 {[%emt 0:00:02]} 4. g3 {[%emt 0:00:02]} c5 {[%emt 0:00:06]} 5. Bg2 {[%emt 0:00:05]} cxd4 {[%emt 0:00:05]} 6. Nxd4 {[%emt 0:00:02]} O-O {[%emt 0:00:03]} 7. Nc3 {[%emt 0:00:05]} Nc6 {[%emt 0:00:05]} 8. Nc2 {[%emt 0:00:08]} d6 {[%emt 0:00:29]} 9. b3 {[%emt 0:00:04] A38: Symmetrical English vs ...g6: 4 Bg2 Bg7 5 Nf3 Nf6.} h5 $5 {[%emt 0:00:03][%mdl 4] Exploring less charted territory.} 10. h4 {[%emt 0:00:13]} Be6 {[%emt 0:00:40] [#]} (10... Ng4 {feels hotter.} 11. Qd2 Qa5 12. Bb2 Bf5) 11. Rb1 $146 {[%emt 0:00:29] The position is equal.} ({Predecessor:} 11. O-O Rc8 12. Bb2 Qa5 13. Ne3 Ng4 14. Nxg4 hxg4 15. Rc1 a6 16. Ba1 Rfe8 17. a4 {½-½ (41) Haidenbauer,D (2031)-Fasser,W (2167) ICCF email 2015}) 11... Qd7 {[%emt 0:00:04]} 12. Bb2 {[%emt 0:00:06]} Rfd8 {[%emt 0:00:08]} 13. Ne3 {[%emt 0:00:07] Inhibits d5.} Rac8 {[%emt 0:00:07]} 14. Ncd5 {[%emt 0:00:11]} Ne5 {[%emt 0:00:27]} 15. O-O {[%emt 0:00:56]} Nxd5 {[%emt 0:00:07]} 16. cxd5 {[%emt 0:00:38]} Bh3 {[%emt 0:00:11]} 17. Qd2 {[%emt 0:00:14]} Bxg2 18. Kxg2 {[%emt 0:00:01]} b6 {[%emt 0:00:56]} (18... Bh6 {is more complex.} 19. f4 Ng4 20. Nxg4 Qxg4 21. Qd4 Kh7) 19. Rbc1 {[%emt 0:00:05]} Qb7 {[%emt 0:00:10]} 20. Rxc8 Rxc8 {[%emt 0:00:01]} 21. Rc1 {[%emt 0:00:16]} Rc5 {[%emt 0:00:25]} 22. b4 {[%emt 0:00:20]} Rxc1 {[%emt 0:00:27]} 23. Qxc1 {[%emt 0:00:12]} (23. Bxc1 $11 {was the only way to keep the balance.} Qa6 24. a3) 23... Ng4 $17 {[%emt 0:00:20] White is now going downhill.} 24. Nxg4 {[%emt 0:01:18]} Qxd5+ {[%emt 0:00:09]} 25. Kg1 {[%emt 0:00:04]} (25. e4 $2 Qxe4+ 26. Kh2 Qxg4 27. Bxg7 Kxg7 $19) 25... hxg4 {[%emt 0:00:05][%mdl 4096] Endgame KQB-KQB} 26. Qc8+ {[%emt 0:00:01]} Bf8 {[%emt 0:00:15] White must now prevent ...Qd1+.} 27. Qxg4 {[%emt 0:00:03]} Qxa2 {[%emt 0:00:02]} 28. Qd4 {[%emt 0:00:02]} (28. Bc3 $17) 28... e5 $19 {[%emt 0:00:03]} 29. Qc3 {[%emt 0:00:02]} Qb1+ {[%emt 0:00:03]} 30. Kh2 {[%emt 0:00:02]} a5 {[%emt 0:00:12]} 31. bxa5 {[%emt 0:00:05]} bxa5 {[%emt 0:00:01]} 32. f4 {[%emt 0:00:02]} (32. e3 $142) 32... Qf1 {[%emt 0:00:05][%csl LRe2,LRf4]} 33. Qe3 {[%emt 0:00:03]} Bh6 {[%emt 0:00:09][%cal Re5f4]} 34. Qe4 {[%emt 0:00:03] [#]} (34. Ba3 exf4 35. Qe8+ Bf8 36. Bxd6 Qf2+ 37. Kh1 Qe1+ 38. Kg2 Qxg3+ 39. Kf1 Qh3+ 40. Ke1 Qc3+ 41. Kf1 Qh3+ 42. Ke1 Qh1+ 43. Kf2 Qh2+ 44. Kf1 Qh3+) 34... Qf2+ {[%emt 0:00:02]} 35. Kh1 $2 {[%emt 0:00:00]} (35. Qg2 Qxg2+ 36. Kxg2) 35... Qf1+ {[%emt 0:00:04]} 36. Kh2 {[%emt 0:00:01]} Qf2+ $2 {[%emt 0:00:00]} (36... exf4 $19 {Strongly threatening ...Qf2+.} 37. Bd4 Qe1 38. gxf4 Qxh4+ 39. Kg2 Qg4+ 40. Kh1 Qh3+ 41. Kg1 Qg3+ 42. Kh1 Qh4+ 43. Kg1 Qg3+ 44. Kh1 Qh4+ 45. Kg2 Qg4+ 46. Kh1 Qxf4 47. Qa8+ Bf8) 37. Kh3 $2 {[%emt 0:00:01][%mdl 8192]} (37. Kh1 $1 $11 {and White has nothing to worry.} Qxg3 38. Qf3 Qxh4+ 39. Kg2 Bxf4 40. Ba3) 37... Bg7 {[%emt 0:00:05] [#] aiming for ...exf4.} 38. h5 {[%emt 0:00:07]} Qf1+ {[%emt 0:00:01]} 39. Kh2 {[%emt 0:00:00]} Qf2+ {[%emt 0:00:03]} ({Avoid the trap} 39... gxh5 $2 40. fxe5 Qf2+ 41. Kh3 $19) 40. Kh3 $1 {[%emt 0:00:01]} gxh5 {[%emt 0:00:02]} (40... exf4 $142 41. gxf4 Bxb2 42. hxg6 Kg7 43. gxf7 Bf6) 41. Qa8+ $2 {[%emt 0:00:01]} (41. fxe5 a4 42. e6 fxe6 43. Qxe6+ Qf7 44. Qc8+ Kh7 45. Qc2+ Qg6 46. Qd2) 41... Bf8 {[%emt 0:00:01]} 42. fxe5 {[%emt 0:00:04]} Qxe2 {[%emt 0:00:01]} 43. Bd4 {[%emt 0:00:03]} (43. exd6 $142 Qf1+ 44. Kh2 Qf2+ 45. Kh3) 43... Qf1+ {[%emt 0:00:03]} (43... Qg4+ $142 44. Kg2 Qxd4 45. exd6 Qd2+ 46. Kf1 Kg7) 44. Kh2 {[%emt 0:00:01]} Qe2+ $2 {[%emt 0:00:02]} (44... Qc4 45. Bb6 Qa2+ 46. Kh1 Qa1+ 47. Kg2 Qb2+ 48. Bf2 Qxe5) 45. Kh3 $1 {[%emt 0:00:01]} Qg4+ {[%emt 0:00:01] Weighted Error Value: White=0.74/Black=0.74} 0-1

[Event "Superbet Blitz Poland 2022"]
[Site "Warsaw"]
[Date "2022.05.22"]
[Round "6.1"]
[White "Aronian, Levon"]
[Black "Duda, Jan-Krzysztof"]
[Result "1/2-1/2"]
[ECO "C54"]
[WhiteElo "2765"]
[BlackElo "2750"]
[Annotator "TA"]
[PlyCount "164"]
[EventDate "2022.05.22"]
[EventType "tourn"]
[EventCountry "POL"]
[SourceTitle "playchess.com"]
[Source "ChessBase"]
[SourceQuality "1"]
[TimeControl "300+2"]

{[%evp 12,164,17,9,18,11,25,0,12,14,14,13,2,13,19,-7,-8,-13,0,-7,0,0,6,4,21,20,22,25,62,33,100,79,120,95,93,93,89,97,97,99,89,97,96,101,91,94,94,94,99,80,90,75,92,75,75,75,75,75,119,126,126,137,136,133,135,89,131,134,138,127,130,89,89,87,87,88,217,103,110,83,103,103,103,103,103,103,103,103,103,103,103,103,103,103,103,103,103,103,103,84,84,75,75,75,75,75,75,75,75,75,1725,795,1205,8,8,0,0,0,22,0,8,12,12,18,25,0,0,0,0,0,0,0,0,0,0,0,0,0,0,0,0,0,0,0,0,-8,-8,-8,0,-8,0,-8,-8,-8,-8]} 1. e4 {[%emt 0:00:02]} e5 {[%emt 0:00:01]} 2. Bc4 {[%emt 0:00:01]} Nf6 {[%emt 0:00:01]} 3. d3 {[%emt 0:00:01]} Nc6 {[%emt 0:00:01]} 4. Nf3 {[%emt 0:00:01]} Bc5 {[%emt 0:00:02]} 5. O-O {[%emt 0:00:03]} O-O {[%emt 0:00:04]} 6. Re1 {[%emt 0:00:01]} d6 {[%emt 0:00:05]} 7. c3 {[%emt 0:00:04]} a6 {[%emt 0:00:04] C54: Giuoco Piano: 4 c3 Nf6, main lines with 5 d4 and 5 d3.} 8. Nbd2 {[%emt 0:00:07]} Ba7 {[%emt 0:00:06]} 9. Nf1 $1 {[%emt 0:00:01][%mdl 4] is recently more successful than 9.Bb3.} Na5 {[%emt 0:00:11]} 10. Bb3 {[%emt 0:00:01]} Nxb3 {[%emt 0:00:02]} 11. axb3 {[%emt 0:00:01]} h6 {[%emt 0:00:04]} 12. Ng3 {[%emt 0:00:04]} Re8 {[%emt 0:00:11] [#]} 13. Be3 $5 $146 {[%emt 0:00:13][%mdl 8] New and interesting.} ({Predecessor:} 13. h3 Bd7 14. d4 Bc6 15. Qc2 Qe7 16. d5 Bd7 17. b4 c6 18. dxc6 Bxc6 19. c4 {1-0 (55) Giri,A (2772)-Santos Latasa,J (2639) Warsaw 2021}) 13... Bxe3 {[%emt 0:00:11]} 14. Rxe3 {[%emt 0:00:01]} c5 {[%emt 0:00:05]} 15. h3 {[%emt 0:00:12]} Be6 {[%emt 0:00:13]} 16. d4 {[%emt 0:00:05]} cxd4 {[%emt 0:00:23]} 17. cxd4 {[%emt 0:00:01]} Qb6 {[%emt 0:00:01]} 18. d5 {[%emt 0:00:33]} Bd7 {[%emt 0:00:02]} 19. Nd2 {[%emt 0:00:02]} Qb4 {[%emt 0:00:16]} 20. Nc4 {[%emt 0:00:08]} a5 {[%emt 0:00:14]} (20... Reb8 $14) 21. Qe1 $16 {[%emt 0:00:14]} Qc5 {[%emt 0:01:22]} 22. Rc3 {[%emt 0:00:02][%cal Oc4e5,Be3c3,Bc3c1,Bc1e1][%mdl 32]} Qb4 {[%emt 0:00:06]} 23. Rcc1 {[%emt 0:00:12] aiming for Qxb4.} Qxe1+ {[%emt 0:00:23]} 24. Rxe1 {[%emt 0:00:01]} Ra6 {[%emt 0:00:00]} 25. Rxa5 {[%emt 0:00:06]} Rxa5 {[%emt 0:00:19]} 26. Nxa5 {[%emt 0:00:01]} Ra8 {[%emt 0:00:01]} 27. Nc4 {[%emt 0:00:37]} Ra6 {[%emt 0:00:01]} 28. f3 {[%emt 0:00:02]} g6 {[%emt 0:00:02]} 29. Kf2 {[%emt 0:00:19]} Ne8 {[%emt 0:00:01]} 30. Rc1 {[%emt 0:00:09]} Kf8 {[%emt 0:00:13]} 31. Ke3 {[%emt 0:00:23]} Ke7 {[%emt 0:00:22]} 32. Nh1 {[%emt 0:00:02]} Ng7 {[%emt 0:00:08]} 33. Nf2 {[%emt 0:00:03]} f5 {[%emt 0:00:02]} 34. Nd3 {[%emt 0:00:22]} f4+ {[%emt 0:00:02]} 35. Kd2 {[%emt 0:00:30][%cal Oc4e5]} Ne8 {[%emt 0:00:03]} 36. Nb4 {[%emt 0:00:04]} Ra8 {[%emt 0:00:01]} 37. Nb6 {[%emt 0:00:11]} Ra5 {[%emt 0:00:13]} 38. Nd3 {[%emt 0:00:12]} ({Better is} 38. Nc2) 38... Rb5 {[%emt 0:00:12]} 39. Nxd7 {[%emt 0:00:34] White is more active.} Kxd7 {[%emt 0:00:01][%mdl 4096] Endgame KRN-KRN} 40. b4 {[%emt 0:00:01]} Rb6 {[%emt 0:00:01]} 41. Ra1 {[%emt 0:00:19] Hoping for Ra8.} Nc7 {[%emt 0:00:18] Prevents Ra8.} 42. h4 {[%emt 0:00:06]} Ra6 {[%emt 0:00:01]} 43. Ra5 {[%emt 0:00:04]} g5 {[%emt 0:00:08]} (43... Ra8 $16 {was necessary.}) 44. hxg5 (44. h5 $1 $18) 44... hxg5 {[%emt 0:00:01]} 45. Ke1 {[%emt 0:00:06]} b6 {[%emt 0:00:03]} 46. Ra3 {[%emt 0:00:02]} Ra8 {[%emt 0:00:07]} 47. Rxa8 {[%emt 0:00:03]} Nxa8 {[%emt 0:00:01] KN-KN} 48. Nf2 {[%emt 0:00:04]} Ke7 {[%emt 0:00:01]} 49. Nd1 {[%emt 0:00:03]} Nc7 {[%emt 0:00:02]} 50. Nc3 {[%emt 0:00:00] Prevents Nb5.} b5 {[%emt 0:00:01]} 51. Kf2 {[%emt 0:00:02]} Kf6 {[%emt 0:00:01]} 52. g3 {[%emt 0:00:01]} Kg6 {[%emt 0:00:04]} 53. Kg2 {[%emt 0:00:01]} Kh6 {[%emt 0:00:01]} 54. Kh3 {[%emt 0:00:00]} Kh5 {[%emt 0:00:03]} 55. b3 {[%emt 0:00:04]} Kh6 {[%emt 0:00:02]} 56. gxf4 {[%emt 0:00:03]} gxf4 {[%emt 0:00:06]} 57. Kh4 {[%emt 0:00:00]} Kg6 {[%emt 0:00:01]} 58. Kg4 {[%emt 0:00:01]} Kf6 {[%emt 0:00:03]} 59. Kh5 {[%emt 0:00:01]} Ke7 {[%emt 0:00:01]} 60. Kg6 {[%emt 0:00:01]} Kd7 $2 {[%emt 0:00:03][%mdl 8192] [#]} (60... Na6 $16) 61. Kf7 $1 $18 {[%emt 0:00:10]} Na6 {[%emt 0:00:01] [#]} 62. Nxb5 $2 {[%emt 0:00:01]} ({Only move:} 62. Na2 $1 $18 Nc7 63. Nc1) 62... Nxb4 $11 {[%emt 0:00:00] Strongly threatening ...Nc2.} 63. Nc3 {[%emt 0:00:04]} Nc2 {[%emt 0:00:03] And now ...Nd4 would win.} 64. Nb1 {[%emt 0:00:01]} Nb4 {[%emt 0:00:04]} (64... Ne1 $5 65. Nd2 Nc2 $11) 65. Nd2 {[%emt 0:00:01]} Nc2 {[%emt 0:00:01]} 66. Kf6 {[%emt 0:00:03]} Nb4 {[%emt 0:00:01]} 67. Nc4 {[%emt 0:00:03]} Nc2 {[%emt 0:00:01] Against Na3} 68. Nxe5+ {[%emt 0:00:01]} dxe5 {The position is equal.} 69. Kxe5 {[%emt 0:00:01] KN-KP} Na1 {[%emt 0:00:05]} 70. b4 {[%emt 0:00:05]} Nc2 {[%emt 0:00:01]} 71. Kxf4 {[%emt 0:00:01] Black must now prevent b5.} Nxb4 {[%emt 0:00:01] KN-K3P} 72. Ke5 {[%emt 0:00:00]} Nd3+ {[%emt 0:00:03]} 73. Kf5 {[%emt 0:00:02]} Kd6 {[%emt 0:00:02]} 74. f4 {[%emt 0:00:01]} Nf2 {[%emt 0:00:05]} 75. e5+ {[%emt 0:00:04]} Kxd5 {[%emt 0:00:01] KN-KPP} 76. e6 {[%emt 0:00:01]} Kd6 {[%emt 0:00:02]} 77. Kf6 {[%emt 0:00:00]} Ng4+ {[%emt 0:00:02]} 78. Kg5 {[%emt 0:00:04]} Ne3 {[%emt 0:00:01]} 79. f5 {[%emt 0:00:03]} Nd5 {[%emt 0:00:04]} 80. Kg6 {[%emt 0:00:02]} Ke7 {[%emt 0:00:00]} 81. f6+ {[%emt 0:00:01]} Nxf6 {[%emt 0:00:02]} 82. Kg5 {[%emt 0:00:01]} Kxe6 {[%emt 0:00:01] White really could win this.  Weighted Error Value: White=0.08 (flawless) /Black=0.10 (very precise)} 1/2-1/2